[Event "Titled Tuesday Blitz November 01 Late 2022"]
[White "Fernandez Guillen, Ernesto J."]
[Black "Janaszak, Dawid"]
[WhiteFideId "3512428"]
[BlackFideId "1119206"]
[WhiteElo "2786"]
[BlackElo "2556"]
[Result "1-0"]
[Round "04"]
[TimeControl "180+1"]
[Date "2022.11.02"]
[WhiteClock "0:01:10"]
[BlackClock "0:00:04"]

1. e4 {[%clk 0:02:59]}  c5 {[%clk 0:02:59]} 2. Nf3 {[%clk 0:02:58]}  Nc6 {[%clk 0:02:59]} 3. d4 {[%clk 0:02:58]}  cxd4 {[%clk 0:02:59]} 4. Nxd4 {[%clk 0:02:58]}  g6 {[%clk 0:03:00]} 5. Nc3 {[%clk 0:02:59]}  Bg7 {[%clk 0:03:00]} 6. Be3 {[%clk 0:03:00]}  Nf6 {[%clk 0:03:00]} 7. Bc4 {[%clk 0:03:00]}  O-O {[%clk 0:02:58]} 8. Bb3 {[%clk 0:03:01]}  Re8 {[%clk 0:02:59]} 9. f3 {[%clk 0:02:57]}  e6 {[%clk 0:02:56]} 10. Nxc6 {[%clk 0:02:55]}  bxc6 {[%clk 0:02:52]} 11. Qd6 {[%clk 0:02:54]}  Nd5 {[%clk 0:02:22]} 12. exd5 {[%clk 0:02:51]}  exd5 {[%clk 0:02:21]} 13. Kf2 {[%clk 0:02:43]}  Rxe3 {[%clk 0:02:10]} 14. Kxe3 {[%clk 0:02:44]}  Qb6+ {[%clk 0:02:00]} 15. Kd2 {[%clk 0:02:23]}  Bh6+ {[%clk 0:01:51]} 16. f4 {[%clk 0:02:00]}  Qd4+ {[%clk 0:01:49]} 17. Ke1 {[%clk 0:02:00]}  Bxf4 {[%clk 0:01:38]} 18. Qe7 {[%clk 0:02:00]}  Bd2+ {[%clk 0:00:57]} 19. Kf1 {[%clk 0:01:59]}  Bxc3 {[%clk 0:00:51]} 20. bxc3 {[%clk 0:01:45]}  Ba6+ {[%clk 0:00:44]} 21. Ke1 {[%clk 0:01:45]}  Qxc3+ {[%clk 0:00:41]} 22. Kf2 {[%clk 0:01:46]}  Qd2+ {[%clk 0:00:27]} 23. Kg3 {[%clk 0:01:46]}  g5 {[%clk 0:00:11]} 24. Raf1 {[%clk 0:01:35]}  Bxf1 {[%clk 0:00:11]} 25. Rxf1 {[%clk 0:01:36]}  Rf8 {[%clk 0:00:11]} 26. Rf2 {[%clk 0:01:25]}  Qc3+ {[%clk 0:00:10]} 27. Rf3 {[%clk 0:01:26]}  Qd2 {[%clk 0:00:08]} 28. h4 {[%clk 0:01:26]}  h6 {[%clk 0:00:07]} 29. hxg5 {[%clk 0:01:26]}  Qxg5+ {[%clk 0:00:07]} 30. Qxg5+ {[%clk 0:01:26]}  hxg5 {[%clk 0:00:07]} 31. Kg4 {[%clk 0:01:25]}  f6 {[%clk 0:00:07]} 32. Kf5 {[%clk 0:01:22]}  Kg7 {[%clk 0:00:07]} 33. Re3 {[%clk 0:01:22]}  Kf7 {[%clk 0:00:06]} 34. c4 {[%clk 0:01:13]}  dxc4 {[%clk 0:00:02]} 35. Bxc4+ {[%clk 0:01:14]}  d5 {[%clk 0:00:02]} 36. Be2 {[%clk 0:01:14]}  Rh8 {[%clk 0:00:03]} 37. Rb3 {[%clk 0:01:14]}  Rh2 {[%clk 0:00:02]} 38. Rb7+ {[%clk 0:01:14]}  Ke8 {[%clk 0:00:02]} 39. Bf3 {[%clk 0:01:11]}  d4 {[%clk 0:00:03]} 40. Bxc6+ {[%clk 0:01:10]}  Kd8 {[%clk 0:00:02]} 41. Rd7+ {[%clk 0:01:10]}  Kc8 {[%clk 0:00:03]} 42. Rxd4 {[%clk 0:01:11]}  Rh4 {[%clk 0:00:03]} 43. Rxh4 {[%clk 0:01:09]}  gxh4 {[%clk 0:00:04]} 44. Kxf6 {[%clk 0:01:10]} 1-0


[Site "https://www.chess.com"]

[Event "Titled Tuesday Blitz November 01 Late 2022"]
[White "Girsh, Daniel"]
[Black "Bacrot, Etienne"]
[WhiteFideId "30949190"]
[BlackFideId "605506"]
[WhiteElo "2075"]
[BlackElo "2666"]
[Result "0-1"]
[Round "04"]
[TimeControl "180+1"]
[Date "2022.11.02"]
[WhiteClock "0:00:19"]
[BlackClock "0:00:16"]

1. d4 {[%clk 0:03:00]}  Nf6 {[%clk 0:02:58]} 2. Bf4 {[%clk 0:02:59]}  c5 {[%clk 0:02:58]} 3. e3 {[%clk 0:02:58]}  g6 {[%clk 0:02:55]} 4. dxc5 {[%clk 0:02:56]}  Qa5+ {[%clk 0:02:52]} 5. Nd2 {[%clk 0:02:55]}  Bg7 {[%clk 0:02:51]} 6. Nf3 {[%clk 0:02:54]}  O-O {[%clk 0:02:50]} 7. Be2 {[%clk 0:02:54]}  Qxc5 {[%clk 0:02:43]} 8. O-O {[%clk 0:02:54]}  Qb6 {[%clk 0:02:32]} 9. Nc4 {[%clk 0:02:54]}  Qd8 {[%clk 0:02:31]} 10. h3 {[%clk 0:02:46]}  Nc6 {[%clk 0:02:31]} 11. Nd4 {[%clk 0:02:40]}  d6 {[%clk 0:02:20]} 12. Bf3 {[%clk 0:02:34]}  Bd7 {[%clk 0:02:18]} 13. Nxc6 {[%clk 0:02:29]}  bxc6 {[%clk 0:02:18]} 14. e4 {[%clk 0:02:28]}  Be6 {[%clk 0:02:02]} 15. Qe2 {[%clk 0:02:19]}  Nd7 {[%clk 0:02:02]} 16. Rad1 {[%clk 0:02:15]}  Bxc4 {[%clk 0:01:42]} 17. Qxc4 {[%clk 0:02:15]}  Bxb2 {[%clk 0:01:43]} 18. Qxc6 {[%clk 0:02:12]}  Rc8 {[%clk 0:01:33]} 19. Qa4 {[%clk 0:02:10]}  Rc7 {[%clk 0:01:26]} 20. Qb3 {[%clk 0:01:41]}  Be5 {[%clk 0:01:24]} 21. Bh6 {[%clk 0:01:40]}  Bg7 {[%clk 0:01:24]} 22. Bg5 {[%clk 0:01:38]}  Nc5 {[%clk 0:01:15]} 23. Qa3 {[%clk 0:01:33]}  Qc8 {[%clk 0:01:05]} 24. Rfe1 {[%clk 0:01:30]}  Ne6 {[%clk 0:00:47]} 25. Be3 {[%clk 0:01:28]}  a5 {[%clk 0:00:47]} 26. Re2 {[%clk 0:01:14]}  Rxc2 {[%clk 0:00:45]} 27. Qxa5 {[%clk 0:01:13]}  Rxe2 {[%clk 0:00:43]} 28. Bxe2 {[%clk 0:01:13]}  Qc2 {[%clk 0:00:44]} 29. Bf3 {[%clk 0:01:07]}  Rc8 {[%clk 0:00:41]} 30. Qd2 {[%clk 0:01:03]}  Qxd2 {[%clk 0:00:39]} 31. Rxd2 {[%clk 0:01:02]}  h5 {[%clk 0:00:30]} 32. g3 {[%clk 0:01:00]}  Rc4 {[%clk 0:00:24]} 33. Kg2 {[%clk 0:00:40]}  Bd4 {[%clk 0:00:23]} 34. Bxd4 {[%clk 0:00:35]}  Nxd4 {[%clk 0:00:22]} 35. Bd1 {[%clk 0:00:34]}  Ne6 {[%clk 0:00:21]} 36. Re2 {[%clk 0:00:28]}  Nc5 {[%clk 0:00:20]} 37. f3 {[%clk 0:00:26]}  Kg7 {[%clk 0:00:20]} 38. Rb2 {[%clk 0:00:25]}  Rd4 {[%clk 0:00:19]} 39. Be2 {[%clk 0:00:24]}  Ra4 {[%clk 0:00:18]} 40. Kf2 {[%clk 0:00:23]}  f5 {[%clk 0:00:14]} 41. exf5 {[%clk 0:00:22]}  gxf5 {[%clk 0:00:14]} 42. Bd1 {[%clk 0:00:20]}  h4 {[%clk 0:00:14]} 43. Bxa4 {[%clk 0:00:19]}  Nd3+ {[%clk 0:00:14]} 44. Kg2 {[%clk 0:00:17]}  Nxb2 {[%clk 0:00:14]} 45. Bc2 {[%clk 0:00:17]}  hxg3 {[%clk 0:00:13]} 46. Kxg3 {[%clk 0:00:18]}  Kf6 {[%clk 0:00:13]} 47. a4 {[%clk 0:00:18]}  Nc4 {[%clk 0:00:13]} 48. Bd3 {[%clk 0:00:18]}  Na5 {[%clk 0:00:13]} 49. h4 {[%clk 0:00:19]}  e5 {[%clk 0:00:13]} 50. Bb5 {[%clk 0:00:16]}  d5 {[%clk 0:00:13]} 51. Kf2 {[%clk 0:00:15]}  d4 {[%clk 0:00:12]} 52. Ke2 {[%clk 0:00:14]}  e4 {[%clk 0:00:12]} 53. fxe4 {[%clk 0:00:15]}  fxe4 {[%clk 0:00:13]} 54. Ba6 {[%clk 0:00:15]}  Kf5 {[%clk 0:00:12]} 55. h5 {[%clk 0:00:14]}  Kg5 {[%clk 0:00:12]} 56. Bc8 {[%clk 0:00:13]}  d3+ {[%clk 0:00:10]} 57. Ke3 {[%clk 0:00:13]}  Nc4+ {[%clk 0:00:09]} 58. Kf2 {[%clk 0:00:12]}  e3+ {[%clk 0:00:09]} 59. Ke1 {[%clk 0:00:12]}  d2+ {[%clk 0:00:08]} 60. Ke2 {[%clk 0:00:11]}  Nb2 {[%clk 0:00:08]} 61. Kxe3 {[%clk 0:00:12]}  d1=Q {[%clk 0:00:09]} 62. a5 {[%clk 0:00:12]}  Qe1+ {[%clk 0:00:09]} 63. Kd4 {[%clk 0:00:13]}  Qxa5 {[%clk 0:00:10]} 64. Be6 {[%clk 0:00:11]}  Qa7+ {[%clk 0:00:11]} 65. Ke5 {[%clk 0:00:11]}  Qg7+ {[%clk 0:00:11]} 66. Kd6 {[%clk 0:00:11]}  Qh6 {[%clk 0:00:12]} 67. Ke7 {[%clk 0:00:10]}  Nd3 {[%clk 0:00:12]} 68. Bd7 {[%clk 0:00:11]}  Nf4 {[%clk 0:00:12]} 69. Kd8 {[%clk 0:00:12]}  Nxh5 {[%clk 0:00:12]} 70. Kc7 {[%clk 0:00:12]}  Ng7 {[%clk 0:00:12]} 71. Bc6 {[%clk 0:00:13]}  Qf6 {[%clk 0:00:13]} 72. Kb6 {[%clk 0:00:14]}  Ne6 {[%clk 0:00:13]} 73. Kb5 {[%clk 0:00:14]}  Qd4 {[%clk 0:00:13]} 74. Bd5 {[%clk 0:00:14]}  Qc5+ {[%clk 0:00:14]} 75. Ka4 {[%clk 0:00:14]}  Qxd5 {[%clk 0:00:14]} 76. Ka3 {[%clk 0:00:14]}  Qb7 {[%clk 0:00:14]} 77. Ka2 {[%clk 0:00:15]}  Nd4 {[%clk 0:00:14]} 78. Ka1 {[%clk 0:00:16]}  Kf4 {[%clk 0:00:14]} 79. Ka2 {[%clk 0:00:17]}  Ke3 {[%clk 0:00:15]} 80. Ka1 {[%clk 0:00:18]}  Kd3 {[%clk 0:00:15]} 81. Ka2 {[%clk 0:00:19]}  Kc3 {[%clk 0:00:16]} 82. Ka1 {[%clk 0:00:19]}  Qb2# {[%clk 0:00:16]} 0-1


[Site "https://www.chess.com"]

[Event "Titled Tuesday Blitz November 01 Late 2022"]
[White "Gokerkan, Cem Kaan"]
[Black "Paravyan, David"]
[WhiteFideId "6336760"]
[BlackFideId "4194985"]
[WhiteElo "2365"]
[BlackElo "2555"]
[Result "0-1"]
[Round "04"]
[TimeControl "180+1"]
[Date "2022.11.01"]
[WhiteClock "0:00:16"]
[BlackClock "0:01:34"]

1. e4 {[%clk 0:03:00]}  e5 {[%clk 0:02:59]} 2. Nf3 {[%clk 0:03:00]}  Nf6 {[%clk 0:02:59]} 3. Bc4 {[%clk 0:02:59]}  Nxe4 {[%clk 0:02:59]} 4. Nc3 {[%clk 0:02:59]}  Nxc3 {[%clk 0:02:58]} 5. dxc3 {[%clk 0:03:00]}  f6 {[%clk 0:02:57]} 6. Nh4 {[%clk 0:02:55]}  g6 {[%clk 0:02:53]} 7. O-O {[%clk 0:02:55]}  c6 {[%clk 0:02:49]} 8. f4 {[%clk 0:02:51]}  d5 {[%clk 0:02:42]} 9. Bb3 {[%clk 0:02:51]}  e4 {[%clk 0:02:31]} 10. f5 {[%clk 0:02:44]}  g5 {[%clk 0:02:32]} 11. Qh5+ {[%clk 0:02:43]}  Kd7 {[%clk 0:02:32]} 12. c4 {[%clk 0:02:26]}  Bc5+ {[%clk 0:02:12]} 13. Kh1 {[%clk 0:02:26]}  d4 {[%clk 0:02:12]} 14. Bxg5 {[%clk 0:01:36]}  fxg5 {[%clk 0:02:06]} 15. f6 {[%clk 0:01:37]}  Kc7 {[%clk 0:02:00]} 16. Qxg5 {[%clk 0:01:36]}  Nd7 {[%clk 0:01:56]} 17. c3 {[%clk 0:01:09]}  d3 {[%clk 0:01:54]} 18. Qf4+ {[%clk 0:01:09]}  Kb6 {[%clk 0:01:54]} 19. Bd1 {[%clk 0:00:56]}  Qxf6 {[%clk 0:01:49]} 20. Qxf6 {[%clk 0:00:53]}  Nxf6 {[%clk 0:01:50]} 21. Rxf6 {[%clk 0:00:54]}  a5 {[%clk 0:01:49]} 22. Rb1 {[%clk 0:00:35]}  e3 {[%clk 0:01:41]} 23. Bf3 {[%clk 0:00:30]}  e2 {[%clk 0:01:35]} 24. g3 {[%clk 0:00:18]}  Re8 {[%clk 0:01:34]} 25. Ng2 {[%clk 0:00:16]}  d2 {[%clk 0:01:34]} 0-1


[Site "https://www.chess.com"]

[Event "Titled Tuesday Blitz November 01 Late 2022"]
[White "Gunduz, Umut Erdem"]
[Black "Wartiovaara, Oliver"]
[WhiteFideId "6381383"]
[BlackFideId "513024"]
[WhiteElo "2182"]
[BlackElo "2197"]
[Result "1-0"]
[Round "04"]
[TimeControl "180+1"]
[Date "2022.11.02"]
[WhiteClock "0:01:33"]
[BlackClock "0:01:13"]

1. e4 {[%clk 0:03:00]}  c5 {[%clk 0:02:55]} 2. Nf3 {[%clk 0:03:00]}  d6 {[%clk 0:02:49]} 3. d4 {[%clk 0:03:00]}  cxd4 {[%clk 0:02:49]} 4. Nxd4 {[%clk 0:03:01]}  Nf6 {[%clk 0:02:50]} 5. Nc3 {[%clk 0:03:01]}  a6 {[%clk 0:02:49]} 6. Bg5 {[%clk 0:03:02]}  Nbd7 {[%clk 0:02:44]} 7. Qe2 {[%clk 0:03:01]}  Qc7 {[%clk 0:02:39]} 8. O-O-O {[%clk 0:02:58]}  b5 {[%clk 0:02:35]} 9. Bxf6 {[%clk 0:02:48]}  Nxf6 {[%clk 0:02:33]} 10. e5 {[%clk 0:02:42]}  dxe5 {[%clk 0:02:24]} 11. Ndxb5 {[%clk 0:02:41]}  axb5 {[%clk 0:02:24]} 12. Nxb5 {[%clk 0:02:42]}  Qb8 {[%clk 0:01:55]} 13. Qc4 {[%clk 0:02:40]}  Bd7 {[%clk 0:01:48]} 14. Nc7+ {[%clk 0:02:27]}  Kd8 {[%clk 0:01:48]} 15. Nxa8 {[%clk 0:02:26]}  Qxa8 {[%clk 0:01:48]} 16. Qxf7 {[%clk 0:02:23]}  g6 {[%clk 0:01:42]} 17. Bb5 {[%clk 0:02:20]}  Bh6+ {[%clk 0:01:41]} 18. Kb1 {[%clk 0:02:17]}  Rf8 {[%clk 0:01:34]} 19. Qe6 {[%clk 0:01:58]}  Qb7 {[%clk 0:01:23]} 20. Bc6 {[%clk 0:01:37]}  Qc7 {[%clk 0:01:16]} 21. Rxd7+ {[%clk 0:01:32]}  Nxd7 {[%clk 0:01:13]} 22. Rd1 {[%clk 0:01:33]} 1-0


[Site "https://www.chess.com"]

[Event "Titled Tuesday Blitz November 01 Late 2022"]
[White "Guzman, Christopher"]
[Black "Melikhov, Evgeny V."]
[WhiteFideId "6405096"]
[BlackFideId "4122046"]
[WhiteElo "2272"]
[BlackElo "2169"]
[Result "0-1"]
[Round "04"]
[TimeControl "180+1"]
[Date "2022.11.02"]
[WhiteClock "0:01:06"]
[BlackClock "0:00:10"]

1. e4 {[%clk 0:03:00]}  e5 {[%clk 0:02:58]} 2. Nf3 {[%clk 0:02:59]}  Nc6 {[%clk 0:02:58]} 3. Bb5 {[%clk 0:03:00]}  a6 {[%clk 0:02:57]} 4. Ba4 {[%clk 0:03:00]}  Nf6 {[%clk 0:02:57]} 5. O-O {[%clk 0:03:00]}  Nxe4 {[%clk 0:02:56]} 6. d4 {[%clk 0:02:59]}  b5 {[%clk 0:02:56]} 7. Bb3 {[%clk 0:02:59]}  d5 {[%clk 0:02:57]} 8. dxe5 {[%clk 0:02:59]}  Be6 {[%clk 0:02:57]} 9. Qe2 {[%clk 0:02:59]}  Be7 {[%clk 0:02:52]} 10. Rd1 {[%clk 0:02:59]}  O-O {[%clk 0:02:44]} 11. c4 {[%clk 0:02:59]}  bxc4 {[%clk 0:02:43]} 12. Bxc4 {[%clk 0:02:59]}  Bc5 {[%clk 0:02:40]} 13. Be3 {[%clk 0:02:56]}  Bxe3 {[%clk 0:02:40]} 14. Qxe3 {[%clk 0:02:54]}  Qb8 {[%clk 0:02:39]} 15. Bb3 {[%clk 0:02:47]}  Na5 {[%clk 0:02:34]} 16. Nbd2 {[%clk 0:02:46]}  Qa7 {[%clk 0:02:31]} 17. Nd4 {[%clk 0:02:34]}  Nxd2 {[%clk 0:02:17]} 18. Rxd2 {[%clk 0:02:33]}  Nxb3 {[%clk 0:01:59]} 19. Nxb3 {[%clk 0:02:31]}  Qxe3 {[%clk 0:01:58]} 20. fxe3 {[%clk 0:02:32]}  Rab8 {[%clk 0:01:34]} 21. Rc1 {[%clk 0:02:31]}  Rfc8 {[%clk 0:01:22]} 22. Nc5 {[%clk 0:02:28]}  a5 {[%clk 0:01:18]} 23. Rdc2 {[%clk 0:02:27]}  Bf5 {[%clk 0:01:15]} 24. Rd2 {[%clk 0:02:27]}  Rb5 {[%clk 0:01:00]} 25. b3 {[%clk 0:02:24]}  h6 {[%clk 0:00:48]} 26. Rxd5 {[%clk 0:02:22]}  a4 {[%clk 0:00:41]} 27. Rd4 {[%clk 0:02:11]}  axb3 {[%clk 0:00:40]} 28. axb3 {[%clk 0:02:11]}  Ra8 {[%clk 0:00:38]} 29. h3 {[%clk 0:02:06]}  Ra2 {[%clk 0:00:37]} 30. e4 {[%clk 0:01:59]}  Be6 {[%clk 0:00:36]} 31. b4 {[%clk 0:01:43]}  Rb2 {[%clk 0:00:22]} 32. Nd3 {[%clk 0:01:43]}  Rd2 {[%clk 0:00:18]} 33. Rxc7 {[%clk 0:01:42]}  Rxe5 {[%clk 0:00:15]} 34. Kf1 {[%clk 0:01:20]}  Rg5 {[%clk 0:00:13]} 35. g4 {[%clk 0:01:20]}  h5 {[%clk 0:00:13]} 36. Ke1 {[%clk 0:01:18]}  Ra2 {[%clk 0:00:12]} 37. Nf4 {[%clk 0:01:08]}  hxg4 {[%clk 0:00:12]} 38. hxg4 {[%clk 0:01:08]}  Rxg4 {[%clk 0:00:11]} 39. Nxe6 {[%clk 0:01:06]}  Rg1# {[%clk 0:00:10]} 0-1


[Site "https://www.chess.com"]

[Event "Titled Tuesday Blitz November 01 Late 2022"]
[White "Han, Yichen"]
[Black "Ter-Sahakyan, Samvel"]
[WhiteFideId "1054430"]
[BlackFideId "13302531"]
[WhiteElo "2323"]
[BlackElo "2604"]
[Result "0-1"]
[Round "04"]
[TimeControl "180+1"]
[Date "2022.11.01"]
[WhiteClock "0:00:22"]
[BlackClock "0:00:41"]

1. e4 {[%clk 0:03:00]}  c6 {[%clk 0:03:00]} 2. Nf3 {[%clk 0:02:57]}  d5 {[%clk 0:03:00]} 3. Nc3 {[%clk 0:02:55]}  Bg4 {[%clk 0:02:59]} 4. h3 {[%clk 0:02:54]}  Bxf3 {[%clk 0:02:59]} 5. Qxf3 {[%clk 0:02:54]}  e6 {[%clk 0:03:00]} 6. Be2 {[%clk 0:02:53]}  d4 {[%clk 0:02:52]} 7. Nb1 {[%clk 0:02:49]}  Bd6 {[%clk 0:02:52]} 8. d3 {[%clk 0:02:49]}  Ne7 {[%clk 0:02:48]} 9. O-O {[%clk 0:02:47]}  O-O {[%clk 0:02:41]} 10. Bd1 {[%clk 0:02:47]}  Nd7 {[%clk 0:02:37]} 11. Qe2 {[%clk 0:02:47]}  e5 {[%clk 0:02:33]} 12. c3 {[%clk 0:02:45]}  c5 {[%clk 0:02:23]} 13. Na3 {[%clk 0:02:40]}  a6 {[%clk 0:02:18]} 14. Nc4 {[%clk 0:02:40]}  Bc7 {[%clk 0:02:18]} 15. a4 {[%clk 0:02:38]}  b5 {[%clk 0:02:17]} 16. axb5 {[%clk 0:02:32]}  axb5 {[%clk 0:02:18]} 17. Rxa8 {[%clk 0:02:33]}  Qxa8 {[%clk 0:02:19]} 18. Na3 {[%clk 0:02:33]}  Qb7 {[%clk 0:02:13]} 19. Bb3 {[%clk 0:02:29]}  Bd6 {[%clk 0:01:56]} 20. c4 {[%clk 0:02:09]}  b4 {[%clk 0:01:56]} 21. Nb5 {[%clk 0:02:08]}  Bb8 {[%clk 0:01:53]} 22. Bd2 {[%clk 0:02:02]}  f5 {[%clk 0:01:45]} 23. f3 {[%clk 0:01:41]}  Nf6 {[%clk 0:01:39]} 24. Bg5 {[%clk 0:01:35]}  h6 {[%clk 0:01:36]} 25. Bxf6 {[%clk 0:01:34]}  Rxf6 {[%clk 0:01:37]} 26. Ra1 {[%clk 0:01:26]}  Kh7 {[%clk 0:01:34]} 27. exf5 {[%clk 0:01:21]}  Nxf5 {[%clk 0:01:34]} 28. Qe4 {[%clk 0:01:19]}  Qxe4 {[%clk 0:01:31]} 29. fxe4 {[%clk 0:01:20]}  Ne3 {[%clk 0:01:26]} 30. Ra8 {[%clk 0:01:17]}  Bd6 {[%clk 0:01:22]} 31. Ra6 {[%clk 0:01:07]}  Rf1+ {[%clk 0:01:15]} 32. Kh2 {[%clk 0:01:08]}  Be7 {[%clk 0:01:15]} 33. Re6 {[%clk 0:00:43]}  Bg5 {[%clk 0:01:14]} 34. Nd6 {[%clk 0:00:30]}  Rf2 {[%clk 0:01:07]} 35. Kg3 {[%clk 0:00:22]}  Rxg2+ {[%clk 0:00:40]} 36. Kf3 {[%clk 0:00:22]}  Rxb2 {[%clk 0:00:41]} 37. Ba4 {[%clk 0:00:22]}  Bh4 {[%clk 0:00:41]} 0-1


[Site "https://www.chess.com"]

[Event "Titled Tuesday Blitz November 01 Late 2022"]
[White "Haszon, David"]
[Black "Marchesich, Giovanni"]
[WhiteFideId "733610"]
[BlackFideId "2824790"]
[WhiteElo "2211"]
[BlackElo "2200"]
[Result "1/2-1/2"]
[Round "04"]
[TimeControl "180+1"]
[Date "2022.11.02"]
[WhiteClock "0:00:14"]
[BlackClock "0:00:38"]

1. d4 {[%clk 0:03:00]}  g6 {[%clk 0:02:55]} 2. Nc3 {[%clk 0:02:59]}  Bg7 {[%clk 0:02:55]} 3. Bf4 {[%clk 0:02:51]}  d6 {[%clk 0:02:46]} 4. e4 {[%clk 0:02:49]}  Nh6 {[%clk 0:02:46]} 5. h4 {[%clk 0:02:36]}  f6 {[%clk 0:02:46]} 6. Qd2 {[%clk 0:02:34]}  Nf7 {[%clk 0:02:46]} 7. Bc4 {[%clk 0:02:34]}  e6 {[%clk 0:02:42]} 8. O-O-O {[%clk 0:02:34]}  O-O {[%clk 0:02:42]} 9. h5 {[%clk 0:02:27]}  g5 {[%clk 0:02:42]} 10. Be3 {[%clk 0:02:27]}  h6 {[%clk 0:02:41]} 11. f4 {[%clk 0:02:27]}  a6 {[%clk 0:02:37]} 12. fxg5 {[%clk 0:02:23]}  Nxg5 {[%clk 0:02:34]} 13. Nf3 {[%clk 0:02:20]}  b5 {[%clk 0:02:34]} 14. Nxg5 {[%clk 0:02:19]}  fxg5 {[%clk 0:02:32]} 15. Bb3 {[%clk 0:02:18]}  Qe7 {[%clk 0:02:25]} 16. Kb1 {[%clk 0:02:11]}  Nd7 {[%clk 0:02:23]} 17. Nd5 {[%clk 0:02:08]}  Qd8 {[%clk 0:02:13]} 18. Rdf1 {[%clk 0:02:07]}  Bb7 {[%clk 0:02:03]} 19. Nc3 {[%clk 0:01:42]}  Qe7 {[%clk 0:01:59]} 20. d5 {[%clk 0:01:42]}  e5 {[%clk 0:01:56]} 21. Ne2 {[%clk 0:01:36]}  Nf6 {[%clk 0:01:54]} 22. Ng3 {[%clk 0:01:34]}  Bc8 {[%clk 0:01:52]} 23. Qd3 {[%clk 0:01:06]}  Bd7 {[%clk 0:01:51]} 24. c4 {[%clk 0:00:57]}  Ng4 {[%clk 0:01:47]} 25. c5 {[%clk 0:00:53]}  Nxe3 {[%clk 0:01:43]} 26. Qxe3 {[%clk 0:00:54]}  Rf4 {[%clk 0:01:43]} 27. c6 {[%clk 0:00:51]}  Bg4 {[%clk 0:01:40]} 28. Ne2 {[%clk 0:00:40]}  Bxe2 {[%clk 0:01:26]} 29. Qxe2 {[%clk 0:00:41]}  Raf8 {[%clk 0:01:26]} 30. g3 {[%clk 0:00:36]}  Rxf1+ {[%clk 0:01:03]} 31. Rxf1 {[%clk 0:00:37]}  Rxf1+ {[%clk 0:01:00]} 32. Qxf1 {[%clk 0:00:38]}  Qf7 {[%clk 0:00:58]} 33. Qxf7+ {[%clk 0:00:37]}  Kxf7 {[%clk 0:00:58]} 34. Kc2 {[%clk 0:00:37]}  Ke7 {[%clk 0:00:47]} 35. Kc3 {[%clk 0:00:37]}  Kd8 {[%clk 0:00:46]} 36. Bd1 {[%clk 0:00:35]}  Kc8 {[%clk 0:00:42]} 37. Bg4+ {[%clk 0:00:34]}  Kb8 {[%clk 0:00:41]} 38. Be6 {[%clk 0:00:29]}  Ka7 {[%clk 0:00:40]} 39. Bg4 {[%clk 0:00:16]}  Kb6 {[%clk 0:00:40]} 40. b4 {[%clk 0:00:17]}  a5 {[%clk 0:00:40]} 41. a3 {[%clk 0:00:17]}  axb4+ {[%clk 0:00:37]} 42. axb4 {[%clk 0:00:18]}  Bf6 {[%clk 0:00:37]} 43. Kd3 {[%clk 0:00:18]}  Be7 {[%clk 0:00:36]} 44. Ke3 {[%clk 0:00:19]}  Bf6 {[%clk 0:00:37]} 45. Kf3 {[%clk 0:00:20]}  Be7 {[%clk 0:00:37]} 46. Bd7 {[%clk 0:00:20]}  g4+ {[%clk 0:00:37]} 47. Kxg4 {[%clk 0:00:20]}  Bg5 {[%clk 0:00:38]} 48. Kf5 {[%clk 0:00:19]}  Bd2 {[%clk 0:00:38]} 49. g4 {[%clk 0:00:19]}  Bg5 {[%clk 0:00:37]} 50. Kg6 {[%clk 0:00:18]}  Bd2 {[%clk 0:00:37]} 51. Bf5 {[%clk 0:00:18]}  Bg5 {[%clk 0:00:37]} 52. Kh7 {[%clk 0:00:19]}  Bf4 {[%clk 0:00:37]} 53. Kg7 {[%clk 0:00:19]}  Bg5 {[%clk 0:00:37]} 54. Kf7 {[%clk 0:00:18]}  Bf4 {[%clk 0:00:38]} 55. Kg6 {[%clk 0:00:18]}  Bg5 {[%clk 0:00:38]} 56. Kg7 {[%clk 0:00:14]}  Bf4 {[%clk 0:00:38]} 57. Kg6 {[%clk 0:00:14]}  Bg5 {[%clk 0:00:38]} 1/2-1/2


[Site "https://www.chess.com"]

[Event "Titled Tuesday Blitz November 01 Late 2022"]
[White "Hjartarson, Johann"]
[Black "Golubova, Anna"]
[WhiteFideId "2300044"]
[BlackFideId "24173606"]
[WhiteElo "2458"]
[BlackElo "2047"]
[Result "0-1"]
[Round "04"]
[TimeControl "180+1"]
[Date "2022.11.02"]
[WhiteClock "0:00:02"]
[BlackClock "0:00:11"]

1. c4 {[%clk 0:03:00]}  g6 {[%clk 0:03:00]} 2. Nf3 {[%clk 0:02:59]}  Bg7 {[%clk 0:03:00]} 3. g3 {[%clk 0:02:58]}  d6 {[%clk 0:03:01]} 4. Bg2 {[%clk 0:02:58]}  Nf6 {[%clk 0:03:01]} 5. O-O {[%clk 0:02:57]}  O-O {[%clk 0:03:02]} 6. d4 {[%clk 0:02:57]}  Nc6 {[%clk 0:03:02]} 7. Nc3 {[%clk 0:02:56]}  a6 {[%clk 0:02:55]} 8. Bg5 {[%clk 0:02:55]}  h6 {[%clk 0:02:45]} 9. Bf4 {[%clk 0:02:54]}  Bg4 {[%clk 0:02:44]} 10. Rc1 {[%clk 0:02:52]}  Rb8 {[%clk 0:02:40]} 11. d5 {[%clk 0:02:50]}  Na5 {[%clk 0:02:38]} 12. Nd2 {[%clk 0:02:46]}  c5 {[%clk 0:02:37]} 13. h3 {[%clk 0:02:41]}  Bd7 {[%clk 0:02:35]} 14. e4 {[%clk 0:02:40]}  b5 {[%clk 0:02:34]} 15. b3 {[%clk 0:02:39]}  bxc4 {[%clk 0:02:33]} 16. bxc4 {[%clk 0:02:39]}  Rb4 {[%clk 0:02:32]} 17. a3 {[%clk 0:02:34]}  Rb2 {[%clk 0:02:32]} 18. e5 {[%clk 0:02:28]}  Nh5 {[%clk 0:02:25]} 19. Be3 {[%clk 0:02:26]}  Bxe5 {[%clk 0:02:18]} 20. Bxh6 {[%clk 0:02:26]}  Re8 {[%clk 0:02:19]} 21. Ne2 {[%clk 0:02:18]}  Qc8 {[%clk 0:02:12]} 22. g4 {[%clk 0:02:17]}  Nf6 {[%clk 0:02:10]} 23. f4 {[%clk 0:02:14]}  Bd4+ {[%clk 0:02:04]} 24. Nxd4 {[%clk 0:02:13]}  cxd4 {[%clk 0:02:05]} 25. Nf3 {[%clk 0:01:58]}  Bxg4 {[%clk 0:02:04]} 26. hxg4 {[%clk 0:01:47]}  Nxg4 {[%clk 0:02:04]} 27. Qxd4 {[%clk 0:01:46]}  Rxg2+ {[%clk 0:02:01]} 28. Kxg2 {[%clk 0:01:46]}  Nxh6 {[%clk 0:02:01]} 29. Rh1 {[%clk 0:01:44]}  Nb3 {[%clk 0:01:32]} 30. Qc3 {[%clk 0:01:36]}  Nxc1 {[%clk 0:01:27]} 31. Rxh6 {[%clk 0:01:32]}  Qg4+ {[%clk 0:01:26]} 32. Kf1 {[%clk 0:01:12]}  f6 {[%clk 0:01:23]} 33. Qe3 {[%clk 0:01:04]}  Kg7 {[%clk 0:01:13]} 34. Rh4 {[%clk 0:01:01]}  Qg3 {[%clk 0:01:12]} 35. Rh7+ {[%clk 0:01:01]}  Kg8 {[%clk 0:01:03]} 36. Rh1 {[%clk 0:00:50]}  Kg7 {[%clk 0:00:54]} 37. Rg1 {[%clk 0:00:43]}  Qh3+ {[%clk 0:00:52]} 38. Kf2 {[%clk 0:00:40]}  Na2 {[%clk 0:00:23]} 39. Rxg6+ {[%clk 0:00:37]}  Kf8 {[%clk 0:00:19]} 40. Qe6 {[%clk 0:00:32]}  Qxe6 {[%clk 0:00:18]} 41. dxe6 {[%clk 0:00:30]}  Nc3 {[%clk 0:00:19]} 42. Ke3 {[%clk 0:00:27]}  d5 {[%clk 0:00:17]} 43. Kd4 {[%clk 0:00:23]}  Ne2+ {[%clk 0:00:16]} 44. Ke3 {[%clk 0:00:22]}  Nc3 {[%clk 0:00:17]} 45. Kd3 {[%clk 0:00:16]}  Ne4 {[%clk 0:00:16]} 46. cxd5 {[%clk 0:00:15]}  Nd6 {[%clk 0:00:15]} 47. Nd4 {[%clk 0:00:14]}  Rb8 {[%clk 0:00:14]} 48. Rh6 {[%clk 0:00:13]}  Kg7 {[%clk 0:00:14]} 49. Rh1 {[%clk 0:00:13]}  Rb2 {[%clk 0:00:13]} 50. Rc1 {[%clk 0:00:12]}  Ra2 {[%clk 0:00:13]} 51. Rc3 {[%clk 0:00:11]}  f5 {[%clk 0:00:12]} 52. Nc6 {[%clk 0:00:08]}  Kf6 {[%clk 0:00:11]} 53. Nb4 {[%clk 0:00:07]}  Ra1 {[%clk 0:00:11]} 54. Nxa6 {[%clk 0:00:06]}  Ne4 {[%clk 0:00:12]} 55. Rb3 {[%clk 0:00:04]}  Rd1+ {[%clk 0:00:12]} 56. Ke3 {[%clk 0:00:04]}  Rxd5 {[%clk 0:00:12]} 57. Nb4 {[%clk 0:00:02]}  Rd1 {[%clk 0:00:11]} 58. Nd3 {[%clk 0:00:02]}  Ra1 {[%clk 0:00:11]} 0-1


[Site "https://www.chess.com"]